Cogmind - Beta 14 @@@ ROGUE MODE // 2024.12.18 @ 14:58:56 Player: The Gourd Result: Destroyed by G-67 Veteran with Plasma Rifle Performance ------------- Evolutions (7) 3500 Regions Visited (19) 3800 Robots Destroyed (157) 785 Value Destroyed (12079) 12079 Prototype IDs (17) 340 Alien Tech Used (0) 0 Bonus (14975) 14975 TOTAL SCORE: 35479 Bonus ------- Triggered High Security 500 High Alert Combat Kills 2388 Follower Combat Kills 5499 Entered Garrisons 1400 Used RIF Installer 5000 Entered DSFs 500 Friendly Fire -312 Cogmind --------- Core Integrity 0/1300 Matter 300/300 Energy 100/100 System Corruption 33% Temperature Cool (0) Movement Core (50) Location -3/Research Parts ------- > --- POWER (2) -------- (None) > --- PROPULSION (6) --- (None) > --- UTILITY (11) ----- (None) > --- WEAPON (2) ------- (None) > --- INVENTORY (5) ---- Armored Heavy Treads Armored Heavy Treads Authchip [Processor] Peak State ------------ > --- POWER ------------ Reinforced Quantum Reactor Reinforced Quantum Reactor > --- PROPULSION ------- Advanced Heavy Treads Advanced Heavy Siege Treads Advanced Heavy Siege Treads > --- UTILITY ---------- High-capacity Storage Unit Advanced Phase Shifter Relay Coupler [Swarmer] Relay Coupler [Grunt] Relay Coupler [Brawler] Relay Coupler [Duelist] Relay Coupler [Sentry] Relay Coupler [Specialist] Relay Coupler [Heavy] Relay Coupler [Proto] > --- WEAPON ----------- Gamma Bomb Array Improved Remote Datajack > --- INVENTORY -------- Light Quantum Reactor Medium Treads Armored Heavy Treads Armored Heavy Treads Armored Heavy Treads Authchip [Processor] Relay Coupler [Sentry] Relay Coupler [Sentry] Relay Coupler [Sentry] Relay Coupler [Demolisher] Relay Coupler [Specialist] Relay Coupler [Heavy] Linear Accelerator Axe [Rating: 140] Favorites ----------- Power Light Angular Momentum Engine Engine Light Angular Momentum Engine Power Core Neutrino Core Reactor Reinforced Quantum Reactor Propulsion Light Treads Treads Light Treads Leg Improved Titanium Leg Wheel Armored Wheel Utility High-capacity Storage Unit Device Improved Shield Generator Storage High-capacity Storage Unit Processor Advanced Targeting Computer Hackware Relay Coupler [Sentry] Protection Scrap Shield Weapon Katana Energy Gun Beam Rifle Energy Cannon Improved EM Pulse Cannon Ballistic Gun Enhanced Autogun Ballistic Cannon Hardcell Cannon Launcher Subdweller Shrapnel Launcher Special Weapon Improved Remote Datajack Impact Weapon Heavy Hammer Slashing Weapon Katana Build | -11 -10 -10 -8 -8 -8 -8 -7 -7 -6 -6 -6 -6 -5 -5 -4 -4 -4 -4 -3 ------- Run | Yrd Mat Sub Mat Gar Mat Gar Fac Gar Fac Gar Fac Gar Fac Gar Fac Gar Fac DSF Res Slots Evolved 14 | . . . 4 . . . 2 . 2 . . . 2 . 2 . . . 2 Power 1 | . . . . . . . 1 . . . . . . . . . . . . Propulsion 4 | . . . 2 . . . . . . . . . 1 . 1 . . . . Utility 9 | . . . 2 . . . 1 . 2 . . . 1 . 1 . . . 2 Weapon . | . . . . . . . . . . . . . . . . . . . . Parts Attached 313 | 6 12 19 32 27 9 17 3 18 24 34 . 20 3 38 2 32 . 5 12 Power 38 | 1 2 1 2 1 . 1 1 5 2 5 . 5 1 4 . 7 . . . Engine 21 | 1 2 1 1 1 . 1 . 4 . 4 . 5 . 1 . . . . . Core 10 | . . . 1 . . . 1 1 2 1 . . 1 3 . . . . . Reactor 7 | . . . . . . . . . . . . . . . . 7 . . . Propulsion 68 | 2 1 2 13 . 4 3 . 2 3 4 . 7 1 16 1 4 . . 5 Treads 44 | 1 . 2 2 . 4 3 . 2 3 4 . 4 1 10 1 4 . . 3 Leg 11 | . . . 10 . . . . . . . . . . 1 . . . . . Wheel 13 | 1 1 . 1 . . . . . . . . 3 . 5 . . . . 2 Hover . | . . . . . . . . . . . . . . . . . . . . Flight . | . . . . . . . . . . . . . . . . . . . . Utility 96 | 1 2 4 7 11 3 5 2 6 10 13 . 6 1 7 . 14 . 3 1 Device 13 | . 1 . 3 1 . . . 3 . 2 . . . . . 2 . 1 . Storage 4 | 1 1 . 1 . . . . . . . . 1 . . . . . . . Processor 4 | . . . 1 . . . . 1 . . . . . . . 1 . 1 . Hackware 39 | . . . . 7 3 4 . 1 5 3 . 5 1 3 . 5 . 1 1 Protection 36 | . . 4 2 3 . 1 2 1 5 8 . . . 4 . 6 . . . Artifact . | . . . . . . . . . . . . . . . . . . . . Weapon 111 | 2 7 12 10 15 2 8 . 5 9 12 . 2 . 11 1 7 . 2 6 Energy Gun 4 | 1 . . 3 . . . . . . . . . . . . . . . . Energy Cannon 8 | . . . 1 2 . 3 . 1 1 . . . . . . . . . . Ballistic Gun 19 | 1 5 6 3 2 1 . . . . . . . . . . 1 . . . Ballistic Cannon 11 | . . . . . . . . . . 3 . . . 3 . 2 . 1 2 Launcher 16 | . . 3 1 3 . 1 . 2 3 2 . . . . . . . . 1 Special Weapon 23 | . . . . 2 1 2 . 2 3 3 . 1 . 5 1 2 . . 1 Impact Weapon 5 | . 2 3 . . . . . . . . . . . . . . . . . Slashing Weapon 25 | . . . 2 6 . 2 . . 2 4 . 1 . 3 . 2 . 1 2 Piercing Weapon . | . . . . . . . . . . . . . . . . . . . . Special Melee Weapon . | . . . . . . . . . . . . . . . . . . . . Unidentified Prototypes 4 | . 1 . 1 . . . . 1 . . . . . . . 1 . . . Parts Lost 51 | . . 3 4 6 . 1 . . 3 5 . 1 . 7 . 3 . . 18 Power 5 | . . . . 1 . 1 . . 1 1 . . . . . . . . 1 Propulsion 9 | . . 1 . . . . . . . . . . . 3 . . . . 5 Utility 25 | . . 2 3 4 . . . . 2 3 . . . 2 . 2 . . 7 Weapon 12 | . . . 1 1 . . . . . 1 . 1 . 2 . 1 . . 5 Highest Loss Streak 12 | . . 2 3 3 . 1 . . 1 1 . 1 . 3 . 1 . . 12 To Critical Strikes 1 | . . . . . . . . . . . . . . . . . . . 1 Average Slot Usage (%) 88 | . 98 86 86 99 97 99 96 85 74 84 93 94 95 91 73 77 78 83 74 Engine 6 | . 14 14 8 4 9 8 7 7 3 3 13 13 8 1 . . . . . Core 3 | . . . . 4 . . 3 6 7 7 . . 2 9 10 1 . . . Reactor 1 | . . . . . . . . . . . . . . . . 8 10 10 8 Treads 16 | . 14 27 . . 29 36 30 16 11 17 20 17 8 13 15 14 15 15 12 Leg 5 | . . . 35 36 4 . . . . . . . . . . . . . . Wheel 2 | . 14 . . . . . . . . . . 3 17 9 . . . . 2 Device 2 | . 5 1 5 5 . . . 5 3 3 6 . . . . 1 5 4 2 Storage 6 | . 22 2 8 9 9 9 7 7 5 5 6 6 5 5 5 5 5 5 3 Hackware 22 | . . . . 10 27 22 15 23 26 22 26 36 39 35 31 31 31 36 36 Protection 4 | . . 11 7 9 . 4 15 1 3 9 6 2 . 2 . 1 . . . Ballistic Gun 3 | . 15 18 8 5 2 . . . . . . . . . . . . . . Special Weapon 4 | . . . . 4 6 8 7 6 4 5 6 5 5 4 5 4 5 5 1 Slashing Weapon 4 | . . . 1 5 9 8 7 7 3 4 6 6 5 3 5 2 5 4 2 Peak Build Rating 140 | 6 13 15 41 46 45 41 47 73 110 111 75 78 70 96 103 131 124 135 140 Average Rating 63 | 5 9 13 32 41 39 39 44 67 84 75 75 70 68 78 102 117 124 129 120 On Entrance 64 | . 6 13 14 41 45 39 38 47 68 110 75 75 66 70 93 103 124 124 130 Naked Turns 19 | . . . . . . . . . . . . . . . . . . . 19 Heaviest Build 125 | 11 36 37 70 73 50 62 95 79 124 125 75 75 69 95 75 118 110 119 119 Greatest Support 230 | 20 16 40 80 80 82 82 82 150 150 150 125 133 36 143 190 230 230 230 230 Greatest Overweight (x) 9 | 1 3 1 3 . 1 . 1 1 1 1 . 5 1 6 . . . . 9 Average Overweight (x) . | . 2 . . . . . . . . . . . 1 1 . . . . . Largest Inventory Capacity 20 | 8 15 15 20 20 20 20 20 20 20 20 20 20 20 20 20 20 20 20 20 Average Capacity 18 | 7 14 6 18 20 20 20 20 20 20 20 20 20 20 20 20 20 20 20 19 Most Carried 20 | 6 15 15 20 20 20 20 20 20 20 20 20 20 20 20 20 20 20 20 20 Average Carried 17 | 4 11 6 16 18 19 19 19 19 18 19 20 19 18 19 19 19 20 19 16 Final Capacity 20 | 8 15 5 20 20 20 20 20 20 20 20 20 20 20 20 20 20 20 20 5 Final Carried 20 | 6 15 5 20 20 17 20 20 20 17 20 20 20 19 20 20 20 20 20 5 Class Distribution -------------------- 58% | Botlord-Mutant 24% | Mutant 16% | Bothacker-Mutant Dominant Class ---------------- Mutant | -10/Materials Mutant | -10/Subcaves Mutant | -8/Materials Bothacker-Mutant | -8/Garrison Bothacker-Mutant | -8/Materials Bothacker-Mutant | -8/Garrison Botlord-Mutant | -7/Factory Botlord-Mutant | -7/Garrison Botlord-Mutant | -6/Factory Botlord-Mutant | -6/Garrison Botlord-Mutant | -6/Factory Botlord-Mutant | -6/Garrison Botlord-Mutant | -5/Factory Botlord-Mutant | -5/Garrison Botlord-Mutant | -4/Factory Botlord-Mutant | -4/Garrison Botlord-Mutant | -4/Factory Botlord-Mutant | -4/DSF Botlord-Mutant | -3/Research Resources | -11 -10 -10 -8 -8 -8 -8 -7 -7 -6 -6 -6 -6 -5 -5 -4 -4 -4 -4 -3 ----------- Run | Yrd Mat Sub Mat Gar Mat Gar Fac Gar Fac Gar Fac Gar Fac Gar Fac Gar Fac DSF Res Matter Collected 7683 | 272 87 696 600 729 168 327 20 270 503 950 . 470 75 1226 23 793 . 78 396 Remotely . | . . . . . . . . . . . . . . . . . . . . Salvage Created 8071 | 180 210 444 876 531 378 358 . 1025 580 572 . 400 61 1611 . 449 . . 396 Parts 368 | 11 11 26 53 32 15 13 . 43 37 18 . 10 2 59 . 18 . . 20 Haulers Intercepted 5 | . . . 3 . 2 . . . . . . . . . . . . . . Recyclers Shooed 4 | 1 . . 2 . 1 . . . . . . . . . . . . . . Parts Field Recycled . | . . . . . . . . . . . . . . . . . . . . Retrieved Matter . | . . . . . . . . . . . . . . . . . . . . Parts Self-Destructed 12 | . . 12 . . . . . . . . . . . . . . . . . Prevented . | . . . . . . . . . . . . . . . . . . . . Kills | -11 -10 -10 -8 -8 -8 -8 -7 -7 -6 -6 -6 -6 -5 -5 -4 -4 -4 -4 -3 ------- Run | Yrd Mat Sub Mat Gar Mat Gar Fac Gar Fac Gar Fac Gar Fac Gar Fac Gar Fac DSF Res Combat Hostiles Destroyed 129 | . 5 12 25 20 4 9 . 6 12 15 . . 1 10 . 5 . . 5 Melee 25 | . . . 4 . 4 4 . 3 3 5 . . 1 . . 1 . . . Guns 37 | . 5 6 17 7 . . . . . . . . . . . 2 . . . Cannons 24 | . . . . 3 . 2 . 2 . 4 . . . 10 . 2 . . 1 AOE 39 | . . 6 4 10 . 3 . 1 9 6 . . . . . . . . . Classes Destroyed 19 | 2 2 1 5 . 1 . . 2 4 1 . . . 1 . . . . . Worker 2 | . . . 2 . . . . . . . . . . . . . . . . Builder 4 | . . . . . . . . . 1 . . . . . . . . . 3 Tunneler 5 | 5 . . . . . . . . . . . . . . . . . . . Hauler 5 | . . . 3 . 2 . . . . . . . . . . . . . . Recycler 5 | 1 . . 1 . 1 . . . 2 . . . . . . . . . . Operator 3 | . 1 . . . 1 . . . 1 . . . . . . . . . . Watcher 2 | . . . . . . . . . 1 . . . . . . . . . 1 Swarmer 22 | . . . 11 7 . 1 . . 2 . . . . . . 1 . . . Cutter 4 | . . . . . . . . . . . . . . 4 . . . . . Grunt 51 | . 5 2 9 8 1 7 . 3 5 9 . . 1 . . 1 . . . Brawler 2 | . . . . . 1 1 . . . . . . . . . . . . . Duelist 8 | . . . 2 1 1 . . . 1 1 . . . 2 . . . . . Protector 1 | . . . . . . . . . 1 . . . . . . . . . . Sentry 10 | . . . 3 4 1 . . . . 2 . . . . . . . . . Hunter 6 | . . . . . . . . . . 1 . . . . . 1 . . 4 Programmer 13 | . . . . . . . . 3 2 2 . . . 4 . 2 . . . Behemoth 3 | . . . . . . . . . 1 1 . . . . . . . . 1 Subdweller 10 | . . 10 . . . . . . . . . . . . . . . . . Infiltrator 1 | . . . . . . . . 1 . . . . . . . . . . . Best Kill Streak 7 | 5 2 4 6 4 2 3 . 3 5 7 . . 1 3 . 3 . . 5 Combat Bots Only 7 | . 2 4 4 4 2 3 . 3 4 7 . . 1 3 . 3 . . 2 Max Kills in Single Turn 5 | 1 1 1 5 4 1 2 . 1 2 2 . . 1 1 . 1 . . 2 Gunslinging . | . . . . . . . . . . . . . . . . . . . . Exploded 4 | . . 1 3 4 . 2 . 1 2 2 . . . . . . . . . Melee 1 | . . . 1 . 1 1 . 1 1 1 . . 1 . . 1 . . . Uniques/NPCs Destroyed . | . . . . . . . . . . . . . . . . . . . . Combat | -11 -10 -10 -8 -8 -8 -8 -7 -7 -6 -6 -6 -6 -5 -5 -4 -4 -4 -4 -3 -------- Run | Yrd Mat Sub Mat Gar Mat Gar Fac Gar Fac Gar Fac Gar Fac Gar Fac Gar Fac DSF Res Hostile Shots Fired 1317 | . 31 63 138 90 6 62 . 49 86 206 . 72 3 96 6 109 . 3 297 Missed 376 | . 2 21 33 28 . 17 . 15 15 50 . 25 2 18 3 42 . 1 104 Damage Taken 18807 | . 379 1355 1331 1032 158 668 . 465 1384 2313 . 1096 66 1573 85 1398 . 73 5431 Core 2655 | . 101 125 131 61 14 68 . 41 104 124 . 318 . 210 . 53 . . 1305 Absorbed by Shields 1605 | . . . 204 91 . . . 162 256 407 . 27 . 458 . . . . . Reduced by Siege Mode 318 | . . . . . . . . . 40 121 . . . . . 76 . . 81 Ignored by Resistances 304 | . . . . . . . . . . 256 . . . 6 . 42 . . . Regen/Repaired (Parts) 782 | . . . . . . . . . 782 . . . . . . . . . . Core Remaining (%) 66 | 100 . 9 . . . 50 . 94 . . . 35 . 79 . . . 95 . Volleys Fired 539 | 12 20 29 51 60 13 29 . 22 37 52 . 32 9 76 4 48 . 2 43 Largest 2 | 2 2 2 2 2 1 1 . 1 1 2 . 1 1 1 1 2 . 1 1 Hottest 100 | 70 70 70 81 94 25 69 . 69 39 92 . 7 5 75 7 100 . 7 80 Shots Fired 680 | 24 40 58 97 82 13 29 . 22 37 53 . 32 9 77 4 58 . 2 43 Gun 274 | 24 40 49 93 57 1 . . . . . . . . . . 10 . . . Cannon 131 | . . . . 5 . 7 . 11 . 36 . . . 36 . 15 . . 21 Launcher 63 | . . 9 4 11 . 4 . 1 17 9 . . . . . . . . 8 Special 212 | . . . . 9 12 18 . 10 20 8 . 32 9 41 4 33 . 2 14 Kinetic 333 | 12 25 58 56 63 1 . . . . 36 . . . 36 . 25 . . 21 Thermal 73 | 12 15 . 41 5 . . . . . . . . . . . . . . . Explosive 31 | . . . . . . 4 . 1 17 9 . . . . . . . . . Electromagnetic 31 | . . . . 5 . 7 . 11 . . . . . . . . . . 8 Robot Hit Streak 32 | 8 11 32 16 8 3 6 . 5 8 15 . 10 8 10 4 19 . 9 15 Robot Miss Streak 5 | 1 2 1 4 3 2 2 . 5 2 5 . 4 2 4 1 3 . . 3 Penetration Max . | . . . . . . . . . . . . . . . . . . . . Secondary Targets 2 | . . . 2 . . . . . . . . . . . . . . . . Max Gunslinging Chain 1 | . . . 1 . . . . . . . . . . . . . . . . Shots Hit Robots 677 | 15 29 48 78 58 19 35 . 47 36 47 . 40 8 122 2 54 . 2 37 Core Hits 308 | 8 12 22 53 32 8 17 . 19 33 32 . 7 2 32 . 12 . . 19 Critical Kills 1 | 1 . . . . . . . . . . . . . . . . . . . Critical Parts Destroyed 1 | . 1 . . . . . . . . . . . . . . . . . . Critical Strikes 41 | 3 1 . 3 . . 1 . 6 1 2 . 3 1 16 . 1 . . 3 Burn 4 | 2 . . 2 . . . . . . . . . . . . . . . . Destroy 1 | 1 . . . . . . . . . . . . . . . . . . . Blast 10 | . . . . . . . . . . . . . . 6 . 1 . . 3 Smash 1 | . 1 . . . . . . . . . . . . . . . . . . Sever 25 | . . . 1 . . 1 . 6 1 2 . 3 1 10 . . . . . Melee Attacks 385 | . 3 12 14 24 13 52 . 57 12 39 . 39 7 89 . 23 . . 1 Impact 15 | . 3 12 . . . . . . . . . . . . . . . . . Slashing 370 | . . . 14 24 13 52 . 57 12 39 . 39 7 89 . 23 . . 1 Piercing . | . . . . . . . . . . . . . . . . . . . . Sneak Attacks 10 | . 1 . 1 . 5 . . 1 2 . . . . . . . . . . Combat Hostiles . | . . . . . . . . . . . . . . . . . . . . Follow-up Attacks . | . . . . . . . . . . . . . . . . . . . . Damage Inflicted 22989 | 149 429 1226 2372 1887 477 894 . 2047 2189 1952 . 891 72 5735 . 1239 . . 1430 Guns 3208 | 149 326 681 1145 647 18 . . . . . . . . . . 242 . . . Cannons 4107 | . . . . 105 . 114 . 201 . 910 . . . 1776 . 403 . . 598 Explosions 6256 | . . 545 858 1135 . 320 . 78 1780 736 . . . . . . . . 804 Melee 9262 | . 103 . 369 . 459 460 . 1768 409 151 . 891 72 3959 . 594 . . 27 Ramming 156 | . . . . . . . . . . 155 . . . . . . . . 1 Kinetic 8387 | 51 176 1226 1265 1722 18 . . . . 910 . . . 1776 . 645 . . 598 Thermal 1046 | 98 150 . 738 60 . . . . . . . . . . . . . . . Explosive 2914 | . . . . . . 320 . 78 1780 736 . . . . . . . . . Electromagnetic 1224 | . . . . 105 . 114 . 201 . . . . . . . . . . 804 Impact 103 | . 103 . . . . . . . . . . . . . . . . . . Slashing 9159 | . . . 369 . 459 460 . 1768 409 151 . 891 72 3959 . 594 . . 27 Piercing . | . . . . . . . . . . . . . . . . . . . . Highest Corruption 33 | . 4 4 1 1 1 1 . 4 4 6 6 8 . 13 . 3 3 3 33 Average Corruption 4 | . 4 4 1 1 1 1 . 1 2 5 6 7 . 11 . 2 3 3 7 Corruption Purged . | . . . . . . . . . . . . . . . . . . . . Corruption Blocked . | . . . . . . . . . . . . . . . . . . . . Effects 372 | . 7 54 . 15 5 9 . 9 11 58 1 53 . 97 . 38 . 4 11 Message Errors 80 | . 2 9 . 3 2 4 . . 4 13 . 15 . 19 . 8 . 1 . Matter Fused 100 | . 1 14 . 1 2 4 . 5 3 15 1 10 . 32 . 6 . 2 4 Heat Flow Errors 55 | . 1 12 . 4 . . . 2 1 7 . 8 . 11 . 9 . . . Energy Discharges 54 | . 3 6 . 1 . 1 . . 2 8 . 8 . 14 . 9 . . 2 Parts Rejected 2 | . . . . . . . . . . . . 1 . . . . . . 1 Parts Fused 6 | . . 2 . . . . . . . 1 . 1 . 1 . 1 . . . Data Loss (minor) 37 | . . 2 . 5 1 . . 2 . 7 . 7 . 10 . 2 . 1 . Data Loss (major) 20 | . . 4 . . . . . . 1 3 . 2 . 8 . 1 . . 1 Misfires 4 | . . 2 . 1 . . . . . . . . . 1 . . . . . Alerts 9 | . . 2 . . . . . . . 3 . 1 . 1 . 2 . . . Misdirections 3 | . . . . . . . . . . . . . . . . . . . 3 Weapon Failures 2 | . . 1 . . . . . . . 1 . . . . . . . . . Overload Shots . | . . . . . . . . . . . . . . . . . . . . Overflow Damage 1112 | . 103 . 154 119 70 12 . 48 53 21 . 56 . 373 . 86 . . 17 Projectiles 240 | . . . . . . . . 16 . 21 . . . 177 . 10 . . 16 Explosions 234 | . . . 101 119 . . . . 13 . . . . . . . . . 1 Melee 638 | . 103 . 53 . 70 12 . 32 40 . . 56 . 196 . 76 . . . Knockbacks 16 | . . . . . . . . . . 2 . . . 9 . 5 . . . Impact 2 | . . . . . . . . . . 2 . . . . . . . . . Kinetic 13 | . . . . . . . . . . . . . . 8 . 5 . . . Secondary 1 | . . . . . . . . . . . . . . 1 . . . . . Self-Inflicted Damage 347 | . . 48 12 67 . 31 . . 49 . . . . . . . . . 140 Shots 18 | . . 1 1 2 . 1 . . 1 . . . . . . . . . 12 Rammed 20 | . . . . . . . . . . 18 . . . . . . . . 2 Targets Rammed 25 | . . . . . . . . . . 23 . . . . . . . . 2 Kicked . | . . . . . . . . . . . . . . . . . . . . Crushed 5 | . . . . . . . . . . 5 . . . . . . . . . Highest Temperature 493 | 70 269 281 159 252 . 90 . 244 371 493 . 181 . 264 . 419 12 . 306 Average Temperature 102 | 27 94 105 51 88 . 28 . 94 159 164 . 70 . 75 . 124 8 . 60 Received Heat Transfer 3521 | . 213 470 578 329 45 261 . 90 549 410 . 102 9 24 . 108 . . 333 Effects 24 | . . . . . . . . . 1 14 . . . . . 9 . . . Shutdowns 7 | . . . . . . . . . . 5 . . . . . 2 . . . Energy Bleed 6 | . . . . . . . . . . 3 . . . . . 3 . . . Interference 4 | . . . . . . . . . . . . . . . . 4 . . . Matter Decay 3 | . . . . . . . . . 1 2 . . . . . . . . . Damage (minor) 1 | . . . . . . . . . . 1 . . . . . . . . . Damage (major) 3 | . . . . . . . . . . 3 . . . . . . . . . Siege Activations 9 | . . . . . . . . . 2 2 . . . . . 2 . . 3 Total Turns 202 | . . . . . . . . . 21 57 . . . . . 30 . . 94 Longest Duration 70 | . . . . . . . . . 15 52 . . . . . 27 . . 70 Robots Corrupted 5 | . . . . . . . . . . . . . . . . . . . 5 Combat Hostiles 4 | . . . . . . . . . . . . . . . . . . . 4 Parts Fried 9 | . 2 . . . . . . . . . . . . . . . . . 7 Impact Corruptions 3 | . 2 . . . . . . . . . . . . 1 . . . . . Robots Melted . | . . . . . . . . . . . . . . . . . . . . Combat Hostiles . | . . . . . . . . . . . . . . . . . . . . Parts Melted 4 | . . . 2 . . . . 1 . . . . 1 . . . . . . Heat Transferred 2409 | 444 444 . 1373 148 . . . . . . . . . . . . . . . Parts Sabotaged 8 | . . . . . . . . . . 5 . . . . . . . . 3 Parts Stolen . | . . . . . . . . . . . . . . . . . . . . Parts Stripped . | . . . . . . . . . . . . . . . . . . . . Power Chain Reactions . | . . . . . . . . . . . . . . . . . . . . Alert | -11 -10 -10 -8 -8 -8 -8 -7 -7 -6 -6 -6 -6 -5 -5 -4 -4 -4 -4 -3 ------- Run | Yrd Mat Sub Mat Gar Mat Gar Fac Gar Fac Gar Fac Gar Fac Gar Fac Gar Fac DSF Res Peak Influence 3168 | 30 153 . 543 1484 833 1216 678 1790 1032 2110 1107 2277 1631 3168 1724 2742 1441 1265 1450 Initial 1663 | . 19 . 1 298 723 226 638 474 939 555 1107 774 1194 1141 1663 1206 1439 1008 711 Average 1185 | 13 26 . 214 886 617 652 663 1022 894 1254 1107 1509 1393 2070 1626 2055 1439 1148 1173 Maximum Alert Level 5 | . . . 2 4 3 4 2 5 3 5 4 5 5 5 5 5 4 4 4 Low Security (%) 9 | 100 100 . 59 . . . . . . . . . . . . . . . . Level 1 4 | . . . 18 7 21 20 . . . . . . . . . . . . . Level 2 13 | . . . 21 13 40 43 100 34 . 16 . . . . . . . . . Level 3 24 | . . . . 50 38 30 . 20 100 27 . 36 . . . . . 39 30 Level 4 18 | . . . . 28 . 5 . 39 . 23 100 18 85 16 38 12 100 60 69 Level 5 29 | . . . . . . . . 5 . 32 . 45 . 83 61 87 . . . High Security . | . . . . . . . . . . . . . 14 . . . . . . Max Security . | . . . . . . . . . . . . . . . . . . . . Squads Dispatched 28 | . 1 . 2 . 2 . . . 5 . . . 2 . 5 . . . 11 Investigation 2 | . . . . . . . . . . . . . . . . . . . 2 Extermination 4 | . . . . . . . . . 2 . . . . . 1 . . . 1 Reinforcement 12 | . 1 . 2 . 1 . . . 2 . . . 1 . 1 . . . 4 Assault 7 | . . . . . 1 . . . 1 . . . . . 2 . . . 3 Garrison 3 | . . . . . . . . . . . . . 1 . 1 . . . 1 Intercept . | . . . . . . . . . . . . . . . . . . . . Searches Triggered . | . . . . . . . . . . . . . . . . . . . . Construction Impeded 3 | . . . . . . . . . . . . . . . . . . . 3 Haulers Reinforced 1 | . . . . . . . . . . . . . . . . . . . 1 Active Scanning Responses . | . . . . . . . . . . . . . . . . . . . . Cargo Convoy Interrupts . | . . . . . . . . . . . . . . . . . . . . Stealth | -11 -10 -10 -8 -8 -8 -8 -7 -7 -6 -6 -6 -6 -5 -5 -4 -4 -4 -4 -3 --------- Run | Yrd Mat Sub Mat Gar Mat Gar Fac Gar Fac Gar Fac Gar Fac Gar Fac Gar Fac DSF Res Distress Signals 11 | . . . 2 . 4 . . . 1 . . . 1 . 1 . . . 2 Communications Jammed . | . . . . . . . . . . . . . . . . . . . . Distress Signals . | . . . . . . . . . . . . . . . . . . . . Times Spotted 478 | . 11 13 39 31 23 29 3 24 33 51 . 46 16 54 5 42 . 4 54 Peak Tracking Total 21 | . 3 4 9 5 4 4 2 5 6 17 . 7 5 6 3 6 . 2 21 Tactical Retreats 25 | . . . 4 . . . 1 . . 12 . 1 . 5 . . . . 2 Traps | -11 -10 -10 -8 -8 -8 -8 -7 -7 -6 -6 -6 -6 -5 -5 -4 -4 -4 -4 -3 ------- Run | Yrd Mat Sub Mat Gar Mat Gar Fac Gar Fac Gar Fac Gar Fac Gar Fac Gar Fac DSF Res Traps Triggered 38 | . . 2 1 5 1 1 . 2 2 5 . 5 1 8 . . . . 5 Indirectly 3 | . . . . . . . . . . . . . . . . . . . 3 Trap Hack Attempts . | . . . . . . . . . . . . . . . . . . . . Triggered . | . . . . . . . . . . . . . . . . . . . . Disarmed . | . . . . . . . . . . . . . . . . . . . . Reprogrammed . | . . . . . . . . . . . . . . . . . . . . Reused . | . . . . . . . . . . . . . . . . . . . . Traps Extracted . | . . . . . . . . . . . . . . . . . . . . Installed . | . . . . . . . . . . . . . . . . . . . . Triggered . | . . . . . . . . . . . . . . . . . . . . Machines | -11 -10 -10 -8 -8 -8 -8 -7 -7 -6 -6 -6 -6 -5 -5 -4 -4 -4 -4 -3 ---------- Run | Yrd Mat Sub Mat Gar Mat Gar Fac Gar Fac Gar Fac Gar Fac Gar Fac Gar Fac DSF Res Machines Disabled 52 | . 1 1 3 4 . 5 . 5 3 4 . 8 2 8 1 4 . . 3 Max in Single Turn 2 | . 1 1 2 1 . 1 . 1 2 1 . 1 . 1 . 1 . . . Garrison Access 1 | . . . . . . . . . . . . . . . . . . . 1 Garrison Relay 31 | . . . . 4 . 5 . 5 . 4 . 6 . 3 . 4 . . . Machines Repaired . | . . . . . . . . . . . . . . . . . . . . Machines Dismantled . | . . . . . . . . . . . . . . . . . . . . Machines Sabotaged . | . . . . . . . . . . . . . . . . . . . . Overloaded Fab Kills . | . . . . . . . . . . . . . . . . . . . . Hacking | -11 -10 -10 -8 -8 -8 -8 -7 -7 -6 -6 -6 -6 -5 -5 -4 -4 -4 -4 -3 --------- Run | Yrd Mat Sub Mat Gar Mat Gar Fac Gar Fac Gar Fac Gar Fac Gar Fac Gar Fac DSF Res Machines Accessed 62 | . 6 1 11 3 5 4 1 3 7 1 1 3 2 3 3 3 1 . 4 Terminals 46 | . 6 . 7 3 3 4 . 3 4 1 . 3 . 3 2 3 1 . 3 Fabricators 1 | . . . . . . . . . . . . . . . . . . . 1 Repair Stations 3 | . . . 1 . . . . . 2 . . . . . . . . . . Recycling Units 1 | . . . 1 . . . . . . . . . . . . . . . . Scanalyzers 3 | . . . 1 . 1 . . . . . . . 1 . . . . . . Garrison Access 7 | . . . 1 . 1 . 1 . 1 . 1 . 1 . 1 . . . . Total Hacks 144 | . 16 1 27 6 15 7 1 7 14 3 1 7 10 4 5 5 2 . 13 Successful 74 | . 9 1 16 2 8 3 1 2 8 1 1 2 6 3 3 3 1 . 4 Failed 70 | . 7 . 11 4 7 4 . 5 6 2 . 5 4 1 2 2 1 . 9 Catastrophic 18 | . 1 . . . 4 1 . 3 3 1 . 1 . . 1 1 . . 2 Database Lockouts . | . . . . . . . . . . . . . . . . . . . . Manual 32 | . 14 . 2 . 9 . . . 2 . . . . . 2 . . . 3 Terminals 107 | . 16 . 18 6 12 7 . 7 7 3 . 7 . 4 4 5 2 . 9 Fabricators 4 | . . . . . . . . . . . . . . . . . . . 4 Repair Stations 8 | . . . 2 . . . . . 6 . . . . . . . . . . Recycling Units 1 | . . . 1 . . . . . . . . . . . . . . . . Scanalyzers 15 | . . . 4 . 2 . . . . . . . 9 . . . . . . Garrison Access 8 | . . . 2 . 1 . 1 . 1 . 1 . 1 . 1 . . . . Terminal Hacks 43 | . 5 1 9 2 5 3 . 2 1 1 . 2 . 3 2 3 1 . 3 Prototype ID Bank 1 | . 1 . . . . . . . . . . . . . . . . . . Open Door 3 | . . . . . . 1 . . . . . 1 . 1 . . . . . Open DSF 2 | . . . . . . . . . . . . . . . . . 1 . 1 Branch Access Points 1 | . . . 1 . . . . . . . . . . . . . . . . Emergency Access Points 8 | . . . 1 1 1 1 . 1 . 1 . . . 1 . 1 . . . Alert Level 1 | . 1 . . . . . . . . . . . . . . . . . . Unreport Threat 7 | . 1 . 2 . 2 . . . 1 . . . . . 1 . . . . Locate Traps 4 | . . . 1 . 1 . . . . . . . . . 1 . . . 1 Maintenance Status 1 | . . . . . . . . . . . . . . . . . . . 1 Transport Status 2 | . 1 . 1 . . . . . . . . . . . . . . . . Hauler Manifests 1 | . . . 1 . . . . . . . . . . . . . . . . Registered Components 1 | . 1 . . . . . . . . . . . . . . . . . . Zone Layout 3 | . . . 2 . 1 . . . . . . . . . . . . . . Garrison Registry 2 | . . . . . . . . . . . . 1 . . . 1 . . . Patrol Navigation 2 | . . . . . . . . 1 . . . . . 1 . . . . . Security Stations 3 | . . . . 1 . 1 . . . . . . . . . 1 . . . Derelict Proto ID Bank 1 | . . 1 . . . . . . . . . . . . . . . . . Fabricator Hacks 1 | . . . . . . . . . . . . . . . . . . . 1 Load Schematic 1 | . . . . . . . . . . . . . . . . . . . 1 Repair Station Hacks 6 | . . . 1 . . . . . 5 . . . . . . . . . . Scan Component 4 | . . . 1 . . . . . 3 . . . . . . . . . . Repair 2 | . . . . . . . . . 2 . . . . . . . . . . Recycling Unit Hacks 1 | . . . 1 . . . . . . . . . . . . . . . . Report Inventory 1 | . . . 1 . . . . . . . . . . . . . . . . Scanalyzer 10 | . . . 3 . 2 . . . . . . . 5 . . . . . . Insert Component 5 | . . . 2 . 1 . . . . . . . 2 . . . . . . Analyze 5 | . . . 1 . 1 . . . . . . . 3 . . . . . . Garrison Access Hacks 7 | . . . 1 . 1 . 1 . 1 . 1 . 1 . 1 . . . . Unlock Access 7 | . . . 1 . 1 . 1 . 1 . 1 . 1 . 1 . . . . Unauthorized Hacks 6 | . 4 . 1 . . . . . 1 . . . . . . . . . . Terminals 6 | . 4 . 1 . . . . . 1 . . . . . . . . . . Assimilate 1 | . . . . . . . . . 1 . . . . . . . . . . Botnet 5 | . 4 . 1 . . . . . . . . . . . . . . . . Fabricators . | . . . . . . . . . . . . . . . . . . . . Repair Stations . | . . . . . . . . . . . . . . . . . . . . Recycling Units . | . . . . . . . . . . . . . . . . . . . . Scanalyzers . | . . . . . . . . . . . . . . . . . . . . Garrison Access . | . . . . . . . . . . . . . . . . . . . . Data Cores Recovered . | . . . . . . . . . . . . . . . . . . . . Used . | . . . . . . . . . . . . . . . . . . . . Hacking Detections 46 | . 6 . 10 3 4 4 . 2 6 1 . 2 . . 2 2 . . 4 Full Trace Events 9 | . . . . 2 . 1 . 1 . . . 2 . . . 1 . . 2 Feedback Events 1 | . . . . . . . . . . . . . . . . . . . 1 Corruption 1 | . . . . . . . . . . . . . . . . . . . 1 Feedback Blocked . | . . . . . . . . . . . . . . . . . . . . Robot Schematics Acquired . | . . . . . . . . . . . . . . . . . . . . Robots Built . | . . . . . . . . . . . . . . . . . . . . Authchips . | . . . . . . . . . . . . . . . . . . . . Time . | . . . . . . . . . . . . . . . . . . . . Total Robot Build Rating . | . . . . . . . . . . . . . . . . . . . . Part Schematics Acquired 4 | . . . 1 . 1 . . . . . . . 2 . . . . . . Parts Built . | . . . . . . . . . . . . . . . . . . . . Authchips . | . . . . . . . . . . . . . . . . . . . . Time . | . . . . . . . . . . . . . . . . . . . . Total Part Build Rating . | . . . . . . . . . . . . . . . . . . . . Parts Repaired 2 | . . . . . . . . . 2 . . . . . . . . . . Time 124 | . . . . . . . . . 124 . . . . . . . . . . Parts Recycled . | . . . . . . . . . . . . . . . . . . . . Recycled Matter . | . . . . . . . . . . . . . . . . . . . . Retrieved Matter . | . . . . . . . . . . . . . . . . . . . . Retrieved Components . | . . . . . . . . . . . . . . . . . . . . Parts Scanalyzed 4 | . . . 1 . 1 . . . . . . . 2 . . . . . . Part Schematics Acquired 4 | . . . 1 . 1 . . . . . . . 2 . . . . . . Parts Damaged . | . . . . . . . . . . . . . . . . . . . . Bothacking | -11 -10 -10 -8 -8 -8 -8 -7 -7 -6 -6 -6 -6 -5 -5 -4 -4 -4 -4 -3 ------------ Run | Yrd Mat Sub Mat Gar Mat Gar Fac Gar Fac Gar Fac Gar Fac Gar Fac Gar Fac DSF Res Used RIF Installer 10 | . . . . 2 . 2 . 1 . 1 . 2 . 1 . 1 . . . Coupler Efficiency 2 | . . . . . . . . 1 . . . . . 1 . . . . . Hotswap 1 | . . . . . . 1 . . . . . . . . . . . . . Code Merge 1 | . . . . . . . . . . 1 . . . . . . . . . Zone Cloak 1 | . . . . . . . . . . . . . . . . 1 . . . Robot Detection 1 | . . . . 1 . . . . . . . . . . . . . . . Patrol Navigation 1 | . . . . . . 1 . . . . . . . . . . . . . Structural Interface 1 | . . . . . . . . . . . . 1 . . . . . . . Program Shield 1 | . . . . . . . . . . . . 1 . . . . . . . Robots Hacked 122 | . . . . 5 7 12 . 7 10 7 . 15 5 21 2 18 . 2 11 Non-combat 4 | . . . . . 1 . . . 1 . . . . 1 . . . 1 . Combat 118 | . . . . 5 6 12 . 7 9 7 . 15 5 20 2 18 . 1 11 Robot Hacks Applied 126 | . . . . 5 7 12 . 7 12 7 . 15 6 21 2 19 . 2 11 parse_system 3 | . . . . . . . . . 1 1 . . . 1 . . . . . no_distress 2 | . . . . . . . . . 1 . . . . . . . . 1 . ignore_parts 1 | . . . . . 1 . . . . . . . . . . . . . . find_garrison 3 | . . . . . . . . . 1 . . . 1 . . . . . 1 scatter_targeting 1 | . . . . . . . . . . . . . . . . 1 . . . disrupt_area 2 | . . . . . . . . . . . . . . . . 2 . . . overload_power 2 | . . . . . . . . . . . . . 1 . . 1 . . . amplify_resonance 15 | . . . . 1 . 5 . . . . . 3 . 3 . 3 . . . disable_weapons 1 | . . . . . . . . . . . . 1 . . . . . . . reboot_system 1 | . . . . . . . . . . . . . . . . . . . 1 go_dormant 2 | . . . . . . . . . 1 . . . . 1 . . . . . streamctrl_high 2 | . . . . . . . . . . . . 1 . 1 . . . . . formatsys_high 91 | . . . . 4 6 7 . 7 8 6 . 10 4 15 2 12 . 1 9 Relay Couplers Released 128 | . . . . 17 . 19 . 22 . 16 . 24 . 11 . 18 . . 1 Machine Destruction 128 | . . . . 17 . 19 . 22 . 16 . 24 . 11 . 18 . . 1 Attached 36 | . . . . 7 3 4 . 1 3 3 . 5 1 3 . 4 . 1 1 Merged Code Value 215 | . . . . . . . . . . . . 122 . 54 . 39 . . . Fabnet Peak Effective % . | . . . . . . . . . . . . . . . . . . . . Robots Rewired 16 | . . . . 3 . . . . . 3 . 2 . 5 . 3 . . . Allies Hacked 2 | . . . . . . . . 2 . . . . . . . . . . . Hacks Repelled . | . . . . . . . . . . . . . . . . . . . . Allies | -11 -10 -10 -8 -8 -8 -8 -7 -7 -6 -6 -6 -6 -5 -5 -4 -4 -4 -4 -3 -------- Run | Yrd Mat Sub Mat Gar Mat Gar Fac Gar Fac Gar Fac Gar Fac Gar Fac Gar Fac DSF Res Total Allies 114 | . . . . 7 6 8 . 9 8 9 . 13 4 21 2 17 . 1 9 Largest Group 12 | . . . . 6 4 6 5 8 5 6 5 7 11 11 12 12 8 9 10 Highest-Rated Group 827 | . . . . 151 65 100 84 290 224 190 181 289 421 721 821 827 423 560 789 Highest-Rated Ally 148 | . . . . 39 29 20 20 95 90 41 41 85 85 148 148 148 85 137 137 Total Orders 33 | . . . . . . . . . . . . . . 7 . 26 . . . STAY 16 | . . . . . . . . . . . . . . 3 . 13 . . . ROAM 1 | . . . . . . . . . . . . . . 1 . . . . . FOLLOW 16 | . . . . . . . . . . . . . . 3 . 13 . . . Ally Attacks 861 | . . . . 41 59 39 14 68 57 39 . 114 52 109 18 108 4 17 122 Total Damage 24246 | . . . . 881 772 611 224 2204 1648 1326 . 3217 1260 2800 664 3542 33 502 4562 Kills 185 | . . . . 7 11 9 2 18 9 12 . 28 8 24 5 22 . 6 24 Allies Corrupted 3 | . . . . . . . . 1 . 1 . . . . . . . 1 . Allies Melted 2 | . . . . . . . . . . . . . . . . 2 . . . Intel | -11 -10 -10 -8 -8 -8 -8 -7 -7 -6 -6 -6 -6 -5 -5 -4 -4 -4 -4 -3 ------- Run | Yrd Mat Sub Mat Gar Mat Gar Fac Gar Fac Gar Fac Gar Fac Gar Fac Gar Fac DSF Res Robot Analysis Total . | . . . . . . . . . . . . . . . . . . . . Derelict Logs Recovered 2 | . . 2 . . . . . . . . . . . . . . . . . Drone Launches . | . . . . . . . . . . . . . . . . . . . . Drone Recoveries . | . . . . . . . . . . . . . . . . . . . . Exploration | -11 -10 -10 -8 -8 -8 -8 -7 -7 -6 -6 -6 -6 -5 -5 -4 -4 -4 -4 -3 ------------- Run | Yrd Mat Sub Mat Gar Mat Gar Fac Gar Fac Gar Fac Gar Fac Gar Fac Gar Fac DSF Res Turns Passed 24971 | 165 851 2413 1724 1832 1022 1853 225 1862 1692 1882 35 1900 324 3014 299 2630 37 261 950 Spaces Moved 13216 | 123 435 1328 935 962 513 978 115 984 890 895 21 1080 234 1624 131 1379 22 145 422 Core 48 | 5 . . . . . . . . . . . . . . . . . . 43 Treads 8757 | 3 . 1328 . . 431 978 115 984 890 895 21 817 . 308 131 1379 22 145 310 Legs 1972 | . . . 928 962 82 . . . . . . . . . . . . . . Wheels 2439 | 115 435 . 7 . . . . . . . . 263 234 1316 . . . . 69 Hover . | . . . . . . . . . . . . . . . . . . . . Flight . | . . . . . . . . . . . . . . . . . . . . Fastest Speed 50 | 50 95 160 125 130 130 158 158 158 160 160 160 105 105 105 166 160 160 160 50 Average Speed 150 | 91 123 164 145 130 160 159 185 159 161 160 160 146 105 134 166 163 160 160 146 Slowest Speed 320 | 160 130 240 270 130 200 161 238 237 240 240 160 240 105 320 166 166 160 160 215 Overloaded Moves . | . . . . . . . . . . . . . . . . . . . . Propulsion Burnouts . | . . . . . . . . . . . . . . . . . . . . Robots Hopped . | . . . . . . . . . . . . . . . . . . . . Cave-ins Triggered . | . . . . . . . . . . . . . . . . . . . . Exploration Rate (%) 50 | 5 67 48 60 95 40 94 3 95 22 85 2 81 6 94 3 94 1 87 21 Regions Visited 19 Branch Regions 1 Pre-discovered Areas 1 | . . 1 . . . . . . . . . . . . . . . . . Known Exits Taken 8 | . . . 1 . 1 . 1 . 1 . 1 . 1 . 1 . 1 . . Unknown Exits Taken 3 | 1 1 1 . . . . . . . . . . . . . . . . . Scrap Searched 8 | . . 8 . . . . . . . . . . . . . . . . . Spaces Dug 27 | . 1 . 1 . 2 3 . . 2 . . 2 4 7 . 4 . . 1 Terrain Destroyed 546 | . 1 90 88 130 2 47 . 14 70 68 . 2 4 18 . 8 . . 4 Melee 26 | . 1 . 1 . 2 3 . . 2 . . 2 4 7 . 4 . . . Projectile 20 | . . . . . . . . . . 1 . . . 11 . 4 . . 4 AOE 500 | . . 90 87 130 . 44 . 14 68 67 . . . . . . . . . Terrain Rammed . | . . . . . . . . . . . . . . . . . . . . Walls Destroyed . | . . . . . . . . . . . . . . . . . . . . Machines Disabled . | . . . . . . . . . . . . . . . . . . . . Actions | -11 -10 -10 -8 -8 -8 -8 -7 -7 -6 -6 -6 -6 -5 -5 -4 -4 -4 -4 -3 --------- Run | Yrd Mat Sub Mat Gar Mat Gar Fac Gar Fac Gar Fac Gar Fac Gar Fac Gar Fac DSF Res Total 17160 | 150 713 1483 1187 1453 686 1175 127 1191 1095 1218 22 1319 295 2235 212 1683 24 175 717 Wait 2098 | 3 210 58 99 324 124 66 5 41 110 121 1 111 42 303 74 162 3 15 226 Move 13201 | 122 434 1327 935 961 513 977 114 983 890 894 21 1079 233 1623 130 1378 21 144 422 Hop . | . . . . . . . . . . . . . . . . . . . . Pick Up 220 | 7 16 6 33 22 8 20 3 28 12 19 . 10 1 20 1 9 . 3 2 Fast Attach 120 | 5 6 7 11 3 . 1 1 6 6 14 . 9 . 22 . 21 . 4 4 Attach 80 | 1 1 2 9 8 4 4 1 2 9 9 . 3 2 11 1 6 . 1 6 Detach 54 | . 4 1 4 2 . 1 . 4 4 4 . 6 . 12 . 8 . 1 3 Swap 114 | . 5 10 12 17 5 12 1 10 9 11 . 8 1 5 1 5 . . 2 Drop 228 | . 14 22 19 14 6 13 2 37 6 22 . 13 . 29 1 22 . 5 3 Fire 539 | 12 20 29 51 60 13 29 . 22 37 52 . 32 9 76 4 48 . 2 43 Melee 385 | . 3 12 14 24 13 52 . 57 12 39 . 39 7 89 . 23 . . 1 Ram . | . . . . . . . . . . . . . . . . . . . . Kick . | . . . . . . . . . . . . . . . . . . . . Crush 25 | . . . . . . . . . . 23 . . . . . . . . 2 Escape Stasis 66 | . . . . 12 . . . . . 2 . 8 . 44 . . . . . Rewire 21 | . . . . 6 . . . 1 . 8 . 1 . 1 . 1 . . 3 Trap . | . . . . . . . . . . . . . . . . . . . . Miscellaneous 9 | . . 9 . . . . . . . . . . . . . . . . . Route ------- -11/Scrapyard -10/Materials (discovered 4 exits: [*Mat x2] / [*Min] / *Sub) -10/Subcaves -8/Materials (discovered 3 exits: *Fac x2 / Gar) -8/Garrison (discovered 3 exits: *Mat x3) -8/Materials (discovered 2 exits: *Fac / Gar) -8/Garrison (discovered 2 exits: *Fac x2) -7/Factory -7/Garrison (discovered 3 exits: *Fac x3) -6/Factory (discovered 2 exits: *Fac / Gar) -6/Garrison (discovered 3 exits: *Fac x3) -6/Factory -6/Garrison (discovered 3 exits: *Fac x3) -5/Factory -5/Garrison (discovered 3 exits: *Fac x3) -4/Factory -4/Garrison (discovered 3 exits: *Fac x3) -4/Factory -4/DSF -3/Research History --------- Turn | Location | Event 30 | -11/Scrapyard | Discovered new exit (range 16) 166 | -11/Scrapyard | Entered Materials 308 | -10/Materials | Build established: Mutant 341 | -10/Materials | Discovered new exit (range 15) 630 | -10/Materials | Discovered new exit (range 16) 681 | -10/Materials | Discovered new exit (range 16) 988 | -10/Materials | Discovered new exit (range 4) 1017 | -10/Materials | Entered Subcaves 1376 | -10/Subcaves | Core integrity fell below 50% 1398 | -10/Subcaves | Ambushed by Subdweller buried in earth 1400 | -10/Subcaves | Ambushed by Subdweller buried in earth 1400 | -10/Subcaves | Ambushed by Subdweller buried in earth 1581 | -10/Subcaves | Learned location of Zion (-7) 1817 | -10/Subcaves | Learned location of 1 exit from Materials 2422 | -10/Subcaves | Core integrity fell below 20% 2987 | -10/Subcaves | Visited 4L-MR0's lab 3011 | -10/Subcaves | Found Tower Shield 3215 | -10/Subcaves | Discovered new exit (range 3) 3430 | -10/Subcaves | Entered Materials 3430 | -8/Materials | Evolved 4 slots: Propulsion x2, Utility x2 3431 | -8/Materials | Identified exit to Factory 4438 | -8/Materials | Lost 3 parts (2u1w) 5056 | -8/Materials | Discovered exit to Factory (range 16) 5154 | -8/Materials | Identified exit to Garrison 5154 | -8/Materials | Entered Garrison 5218 | -8/Garrison | Triggered checkpoint 5255 | -8/Garrison | Garrison Relay disabled 5641 | -8/Garrison | Installed Relay Interface Framework 5941 | -8/Garrison | Build established: Bothacker-Mutant 6082 | -8/Garrison | Triggered checkpoint 6103 | -8/Garrison | Lost 3 parts (2u1w) 6218 | -8/Garrison | Expanded RIF knowledge: Robot Detection 6309 | -8/Garrison | Discovered new exit (range 10) 6457 | -8/Garrison | Discovered new exit (range 11) 6469 | -8/Garrison | Garrison Relay disabled 6538 | -8/Garrison | Triggered checkpoint 6568 | -8/Garrison | Garrison Relay disabled 6671 | -8/Garrison | Discovered new exit (range 5) 6710 | -8/Garrison | Triggered checkpoint 6788 | -8/Garrison | Learned Materials security intel 6810 | -8/Garrison | Garrison Relay disabled 6876 | -8/Garrison | Lost 3 allies 6986 | -8/Garrison | Entered Materials 6986 | -8/Materials | Accompanied by 3 allies 7386 | -8/Materials | First assault squad dispatched 7895 | -8/Materials | Lost 3 allies 7981 | -8/Materials | Discovered exit to Factory (range 16) 8005 | -8/Materials | Identified exit to Garrison 8008 | -8/Materials | Entered Garrison 8008 | -8/Garrison | Accompanied by 2 allies 8064 | -8/Garrison | Triggered checkpoint 8114 | -8/Garrison | Garrison Relay disabled 8131 | -8/Garrison | Learned Factory security intel 8270 | -8/Garrison | Triggered checkpoint 8270 | -8/Garrison | Triggered checkpoint 8294 | -8/Garrison | Triggered checkpoint 8313 | -8/Garrison | Lost 3 allies 8454 | -8/Garrison | Expanded RIF knowledge: Hotswap 8468 | -8/Garrison | Triggered checkpoint 8526 | -8/Garrison | Garrison Relay disabled 8675 | -8/Garrison | Discovered exit to Factory (range 13) 8916 | -8/Garrison | Triggered checkpoint 9056 | -8/Garrison | Triggered checkpoint 9073 | -8/Garrison | Garrison Relay disabled 9268 | -8/Garrison | Garrison Relay disabled 9406 | -8/Garrison | Rescued a captive Derelict 9598 | -8/Garrison | Expanded RIF knowledge: Patrol Navigation 9676 | -8/Garrison | Garrison Relay disabled 9821 | -8/Garrison | Discovered exit to Factory (range 14) 9861 | -8/Garrison | Entered Factory 9861 | -7/Factory | Accompanied by 5 allies 9861 | -7/Factory | Evolved 2 slots: Power x1, Utility x1 9908 | -7/Factory | Build established: Botlord-Mutant 10071 | -7/Factory | Identified exit to Garrison 10086 | -7/Factory | Entered Garrison 10086 | -7/Garrison | Accompanied by 4 allies 10538 | -7/Garrison | Triggered checkpoint 10589 | -7/Garrison | Garrison Relay disabled 10606 | -7/Garrison | Found embedded Infiltrators 10771 | -7/Garrison | P-60 Hacker assimilated allied Trooper 4a 10830 | -7/Garrison | Triggered checkpoint 10865 | -7/Garrison | Lost 3 allies 10866 | -7/Garrison | Triggered checkpoint 10952 | -7/Garrison | Discovered new exit (range 4) 10980 | -7/Garrison | Triggered checkpoint 11001 | -7/Garrison | Garrison Relay disabled 11028 | -7/Garrison | Garrison Relay disabled 11240 | -7/Garrison | Discovered new exit (range 14) 11266 | -7/Garrison | Expanded RIF knowledge: Coupler Efficiency 11341 | -7/Garrison | Garrison Relay disabled 11865 | -7/Garrison | Garrison Relay disabled 11928 | -7/Garrison | Discovered new exit (range 12) 11948 | -7/Garrison | Entered Factory 11948 | -6/Factory | Accompanied by 4 allies 11948 | -6/Factory | Evolved 2 slots: Utility x2 12298 | -6/Factory | First assault squad dispatched 12300 | -6/Factory | Repaired Imp. Heavy Treads? 12423 | -6/Factory | Lost 3 allies 12502 | -6/Factory | Lost 4 allies 12774 | -6/Factory | Spotted B-75 Beast 12885 | -6/Factory | Destroyed B-75 Beast 13076 | -6/Factory | Attached Tower Shield, gained temporary slots: Power, Propulsion x2, Utility x2, Weapon x2 13440 | -6/Factory | Discovered new exit (range 14) 13538 | -6/Factory | Repaired Imp. Heavy Treads 13640 | -6/Factory | Identified exit to Garrison 13640 | -6/Factory | Entered Garrison 13640 | -6/Garrison | Accompanied by 1 ally 13678 | -6/Garrison | Triggered checkpoint 13778 | -6/Garrison | Garrison Relay disabled 14026 | -6/Garrison | Triggered checkpoint 14043 | -6/Garrison | Triggered checkpoint 14076 | -6/Garrison | Lost 3 allies 14094 | -6/Garrison | Destroyed 7 combat bots 14147 | -6/Garrison | Spotted B-75 Beast 14226 | -6/Garrison | Destroyed B-75 Beast 14268 | -6/Garrison | Discovered new exit (range 12) 14315 | -6/Garrison | Build established: Bothacker-Mutant 14416 | -6/Garrison | Triggered checkpoint 14442 | -6/Garrison | Garrison Relay disabled 14755 | -6/Garrison | Build established: Botlord-Mutant 14907 | -6/Garrison | Garrison Relay disabled 14930 | -6/Garrison | Triggered checkpoint 15060 | -6/Garrison | Discovered new exit (range 3) 15114 | -6/Garrison | Expanded RIF knowledge: Code Merge 15181 | -6/Garrison | Triggered checkpoint 15264 | -6/Garrison | Triggered checkpoint 15447 | -6/Garrison | Discovered new exit (range 11) 15458 | -6/Garrison | Triggered checkpoint 15458 | -6/Garrison | Garrison Relay disabled 15522 | -6/Garrison | Entered Factory 15522 | -6/Factory | Accompanied by 5 allies 15557 | -6/Factory | Identified exit to Garrison 15557 | -6/Factory | Entered Garrison 15557 | -6/Garrison | Accompanied by 5 allies 15589 | -6/Garrison | Triggered checkpoint 15615 | -6/Garrison | Triggered checkpoint 15640 | -6/Garrison | Garrison Relay disabled 15735 | -6/Garrison | Garrison Relay disabled 16115 | -6/Garrison | Expanded RIF knowledge: Structural Interface 16259 | -6/Garrison | Garrison Relay disabled 16295 | -6/Garrison | Triggered checkpoint 16300 | -6/Garrison | Triggered checkpoint 16331 | -6/Garrison | Triggered checkpoint 16372 | -6/Garrison | Lost 5 allies 16396 | -6/Garrison | Discovered new exit (range 15) 16427 | -6/Garrison | Expanded RIF knowledge: Program Shield 16464 | -6/Garrison | Spotted B-75 Beast 16468 | -6/Garrison | Assimilated Beast 5a with formatsys_high 16503 | -6/Garrison | Found Relay Coupler [Proto] 16506 | -6/Garrison | Found Relay Coupler [Proto] 16508 | -6/Garrison | Found Relay Coupler [Proto] 16512 | -6/Garrison | Found Relay Coupler [Proto] 16561 | -6/Garrison | Triggered checkpoint 16590 | -6/Garrison | Garrison Relay disabled 16648 | -6/Garrison | Core integrity fell below 50% 16758 | -6/Garrison | Discovered new exit (range 61) 16758 | -6/Garrison | Discovered new exit (range 24) 16758 | -6/Garrison | Discovered new exit (range 34) 17001 | -6/Garrison | Garrison Relay disabled 17213 | -6/Garrison | Garrison Relay disabled 17217 | -6/Garrison | Triggered checkpoint 17457 | -6/Garrison | Entered Factory 17457 | -5/Factory | Accompanied by 7 allies 17457 | -5/Factory | Evolved 2 slots: Propulsion x1, Utility x1 17733 | -5/Factory | Garrison activated, responded to threat 17735 | -5/Factory | High security lockdown imminent 17771 | -5/Factory | Identified exit to Garrison 17781 | -5/Factory | Entered Garrison 17781 | -5/Garrison | Accompanied by 9 allies 17809 | -5/Garrison | Triggered checkpoint 17967 | -5/Garrison | Lost 4 allies 17973 | -5/Garrison | Triggered checkpoint 18022 | -5/Garrison | Lost 5 allies 18103 | -5/Garrison | Lost 3 allies 18195 | -5/Garrison | Triggered checkpoint 18397 | -5/Garrison | Discovered new exit (range 10) 18417 | -5/Garrison | Triggered checkpoint 18474 | -5/Garrison | Garrison Relay disabled 18511 | -5/Garrison | System corruption reached 10% 18557 | -5/Garrison | Lost 3 parts (2n1u) 18703 | -5/Garrison | Spotted B-90 Cyclops 18763 | -5/Garrison | Triggered checkpoint 18777 | -5/Garrison | Triggered checkpoint 18942 | -5/Garrison | Discovered new exit (range 14) 19209 | -5/Garrison | Triggered checkpoint 19358 | -5/Garrison | Garrison Relay disabled 19375 | -5/Garrison | Triggered checkpoint 19601 | -5/Garrison | Spotted Executioner 19601 | -5/Garrison | Spotted Executioner 19615 | -5/Garrison | Allies destroyed Executioner 19615 | -5/Garrison | Assimilated Executioner with formatsys_high 19623 | -5/Garrison | Rewired Executioner 19659 | -5/Garrison | Discovered new exit (range 5) 19683 | -5/Garrison | Triggered checkpoint 19731 | -5/Garrison | Expanded RIF knowledge: Coupler Efficiency 19742 | -5/Garrison | Garrison Relay disabled 19921 | -5/Garrison | Spotted B-86 Titan 19935 | -5/Garrison | Allies destroyed B-86 Titan 19956 | -5/Garrison | Rewired B-75 Beast 19964 | -5/Garrison | Rewired B-90 Cyclops 20795 | -5/Garrison | Entered Factory 20795 | -4/Factory | Accompanied by 11 allies 20795 | -4/Factory | Evolved 2 slots: Propulsion x1, Utility x1 21026 | -4/Factory | Identified exit to Garrison 21041 | -4/Factory | Garrison activated, responded to threat 21077 | -4/Factory | First assault squad dispatched 21094 | -4/Factory | Entered Garrison 21094 | -4/Garrison | Accompanied by 11 allies 21182 | -4/Garrison | Triggered checkpoint 21296 | -4/Garrison | Triggered checkpoint 21307 | -4/Garrison | Garrison Relay disabled 21399 | -4/Garrison | Spotted B-86 Titan 21400 | -4/Garrison | Allies destroyed Executioner 21420 | -4/Garrison | Allies destroyed Cyclops 6a 21423 | -4/Garrison | Allies destroyed B-86 Titan 21429 | -4/Garrison | Triggered checkpoint 21438 | -4/Garrison | Triggered checkpoint 21466 | -4/Garrison | Triggered checkpoint 21507 | -4/Garrison | Lost 18 allies 21533 | -4/Garrison | Found Hvy. Reflective Plating 21760 | -4/Garrison | Discovered new exit (range 10) 21796 | -4/Garrison | Discovered new exit (range 89) 21796 | -4/Garrison | Discovered new exit (range 58) 21796 | -4/Garrison | Discovered new exit (range 11) 21894 | -4/Garrison | Garrison Relay disabled 22109 | -4/Garrison | Garrison Relay disabled 22136 | -4/Garrison | Expanded RIF knowledge: Zone Cloak 22409 | -4/Garrison | Found embedded Infiltrators 22470 | -4/Garrison | Garrison Relay disabled 22500 | -4/Garrison | Learned Factory security intel 22647 | -4/Garrison | Spotted B-86 Titan 22652 | -4/Garrison | Allies destroyed B-86 Titan 22962 | -4/Garrison | Spotted B-86 Titan 22976 | -4/Garrison | Allies destroyed B-86 Titan 23023 | -4/Garrison | Rewired B-75 Beast 23724 | -4/Garrison | Entered Factory 23724 | -4/Factory | Accompanied by 8 allies 23758 | -4/Factory | Identified exit to DSF 23761 | -4/Factory | Entered DSF 23761 | -4/DSF | Accompanied by 8 allies 23776 | -4/DSF | Additional patrols routed to DSF 23854 | -4/DSF | Discovered new exit (range 15) 24022 | -4/DSF | Entered Research 24022 | -3/Research | Accompanied by 8 allies 24022 | -3/Research | Evolved 2 slots: Utility x2 24175 | -3/Research | Lost 3 allies 24402 | -3/Research | Spotted B-86 Titan 24428 | -3/Research | Destroyed B-86 Titan 24438 | -3/Research | Found Gamma Bomb Array 24448 | -3/Research | Lost 5 allies 24531 | -3/Research | Garrison activated, responded to threat 24573 | -3/Research | Spotted B-86 Titan 24581 | -3/Research | Lost 5 allies 24650 | -3/Research | Lost 5 parts (2n1u2w) 24772 | -3/Research | First assault squad dispatched 24923 | -3/Research | System corruption reached 10% 24948 | -3/Research | System corruption reached 30% 24956 | -3/Research | Core integrity fell below 50% 24966 | -3/Research | Core integrity fell below 20% 24972 | -3/Research | Build established: Mutant 24972 | -3/Research | Destroyed by G-67 Veteran with Plasma Rifle Last Messages --------------- 24953_ Critical hit (Burn: +37). 24954_ Terminal disabled. 24954_ Segregator destroyed. 24954_ K-01 Serf collects debris. 24955_ R-10 Processor collects Relay Coupler [Sentry]. 24955_ M-36 Artificer repairs G-73 Enforcer. 24957_ System corrupted: Matter fused (-6). 24957_ Acquired 44 matter. 24959_ R-10 Processor collects Relay Coupler [Specialist]. 24960_ M-28 Smith repairs B-74 Champion. 24960_ P-80 Master resets B-74 Champion, system corruption cleaned. 24965_ Penetrated by Slug. 24967_ Slug penetrates Wall. 24968_ Penetrated by Slug. 24968_ Slug penetrates Wall. 24971_ Slug penetrates Reinforced Barrier. [Achievement: 30k Club] Map ----- +----------------------------------------------------+ | ?????????????????????????????????????????????????? | | ?????????????????????????????????????????????????? | | ?????????????????????????????????????????????????? | | ?????????????????????????????????????????????????? | | ?????????????????????????????????????????????????? | | ?????????????????????????????????????????????????? | | ?????????????????????????????????????????????????? | | ?????????????????????????????????????????????????? | | ?????????????????????????????????????????????????? | | ?????????????????????????????????????????????????? | | ???????????????????????????? ??????????????????? | | ???????????????????????????? ???????????? ?????? | | ???????????????????????????? ???????????# ???? | | ???????????????????????????? ???????????# ## | | ????????????????????????????# #???????????# | | ????????????????????????????# #???????????# | | ??????????????????????????### ####????????# | | ??????????????????????????# ?????????? #+## | | ??????????????????????????# ??????????????# | | ??????????????????????????# #??????????????# | | ??????????????????????????# #???????????????? | | ??????????????????????????# gg#?????????????????? | | ??????????????????????????# ####???##########?? | | ????????????# #####+#### #T ##### ### | | ????????????# # %/*= | | ????????????# @ # ### | | ????????????# # % #?? | | ????????????# =[! % !! % + #?? | | ????????????########### =[ ! % # ] #?? | | ????????????????????# BB =[! # #?? | | ????????????????????# BB # #?? | | ???????????????????#### # ! #?? | | ?????????????????? % ##########?? | | ??????????????^^?? h ####???????? | | ?????????????????? % u % ""#???????? | | ?????????????????? %G"#???????? | | ?????????????????? "" ^ " % % ""#???????? | | ???????????????????"" """ """p% ############ | | ????????????????? """ """ "" % | | ???????????????? ! | | ???????????????? % | | ???????????????? | | ??????????????????##########+##### ##### | | ??????????????????????? # #???? | | ??????????????????????? #"% #???? | | ??????????????????????# #%" #???? | | ??????????????????????# +" #???? | | ??????????????????????# # #???? | | ??????????????????????# # #???? | | ??????????????????????# # ###?? | +----------------------------------------------------+ Best States ------------- Heat Dissipation 46 Energy Generation 49 Energy Capacity 600 Matter Stores 300 Matter Capacity 300 Sight Range 16 Robot Scan Range 15 Terrain Scan Density 10 Power Amplification 20 Additional Mass Support 12 Armor Coverage 2600 Resistance: KI 30 Resistance: TH 25 Core Shielding 20 Phase Shifting 15 Evasion (%) 55 Targeting Accuracy 8 Recoil Reduction 6 Particle Charging 15 Offensive Hacking 10 Defensive Hacking 10 Relay Coupler Types 8 Relay Coupler Value 333 Authchip Count 1 Item Schematics ----------------- Sub. Shrapnel Launcher | -8/Materials | Scanalyzed Remote Datajack | -8/Materials | Scanalyzed Imp. Heavy Treads | -5/Factory | Scanalyzed Hvy. Mass Driver | -5/Factory | Scanalyzed Robot Schematics ------------------ None Fabricated ------------ Nothing Alien Tech Used ----------------- None Achievements -------------- 30k Club Beloved Can't Touch This Factory Defaults Generalissimo Pwned Challenges ------------ None Game ------ Seed FactoryClaymoresProcessor Manual? 0 Play Time 06:05:40 Cumulative 98.9 hours Start 2024.12.18 @ 07:45:22 End 2024.12.18 @ 14:58:56 Sessions 7 Manual Loads 0 Difficulty Rogue Special Mode None Game No. 65 Rogue 65 Adventurer 0 Explorer 0 Win Type - Total 1 Types 1/0/0/0/0/0/0/0/0 Lore% 24 Gallery% 49 Achievement% 48 Wizard Run 0 Options --------- Layout 1 ASCII 0 Keyboard 0 Movement Vi Keybinds 1 Fullscreen 1 Font 32/SmallcapsGlow Map View 50x35 Zoom Use 1% Tactical HUD 1 Map Filters NONE Filters NONE Steam 1 RUN: 6207f0c9-c3d2-4580-8492-56ec7203a1e9